bitfinex/quotes_ETHUSD_20250626
["timestamp","ask_amount","ask_price","bid_price","bid_amount"]
[1750973962465,3.37,2411.0,2410.0,0.82990585]
[1750973962784,3.37,2411.0,2410.0,4.97917751]
[1750973962963,3.37,2411.0,2410.0,10.82990585]
[1750973963152,9.221,2411.3,2410.2,0.8528]
[1750973963991,13.739,2411.6,2410.4,4.14858553]
[1750973964191,3.37,2411.6,2410.3,10.0]
[1750973964598,4.14689711,2411.5,2410.3,10.0]
[1750973964889,4.14698323,2411.4,2410.3,10.0]
[1750973965096,4.14688061,2411.5,2410.4,1.42228]
[1750973965763,7.51669652,2411.6,2410.4,1.42228]
[1750973965964,3.37,2411.6,2410.4,1.42228]
[1750973966387,4.14680712,2411.5,2410.4,1.42228]
[1750973968095,7.51672843,2411.6,2410.4,1.42228]
[1750973968298,3.37,2411.6,2410.5,1.142228]
[1750973968500,7.51674562,2411.6,2410.5,1.142228]
[1750973968800,3.37,2411.6,2410.5,1.142228]
[1750973969500,4.14654016,2411.7,2410.5,1.142228]
[1750973969701,9.206,2411.6,2410.5,5.29066719]
[1750973969902,4.14635496,2411.8,2410.6,0.67131772]
[1750973970099,4.14630719,2411.8,2410.6,0.67131772]
[1750973970303,9.204,2411.7,2410.6,0.67131772]
[1750973970971,9.204,2411.7,2410.6,4.81960322]
[1750973971294,9.204,2411.7,2410.7,1.01102836]
[1750973971677,9.204,2411.7,2410.7,11.01102836]
[1750973971865,9.204,2411.7,2410.7,1.01102836]
[1750973972197,4.14636027,2411.8,2410.7,1.01102836]
[1750973972398,9.199,2411.7,2410.8,11.54963461]
[1750973972583,9.199,2411.7,2410.8,1.54963461]
[1750973973700,9.195,2411.7,2410.8,5.697629]
[1750973973906,10.0,2412.0,2410.8,5.697629]
[1750973974122,9.195,2411.9,2410.9,1.14086574]
[1750973974406,9.195,2411.9,2410.9,5.28866696]
[1750973974770,9.195,2411.9,2410.9,1.14086574]
[1750973975385,9.192,2411.8,2410.9,1.14086574]
[1750973975600,9.192,2411.8,2410.8,0.9114]
[1750973976068,12.524,2412.1,2410.8,0.9114]
[1750973976280,4.14600729,2412.0,2410.8,0.9114]
[1750973977517,4.14600729,2412.0,2410.8,5.6114]
[1750973978696,16.66985271,2412.1,2410.8,5.6114]
[1750973978919,16.66985271,2412.1,2410.9,0.97595194]
[1750973979126,12.524,2412.1,2410.9,0.97595194]
[1750973980001,12.524,2412.1,2410.9,5.12372648]
[1750973981012,12.524,2412.1,2410.9,0.97595194]
[1750973981210,12.524,2412.1,2410.9,5.29061205]
[1750973981413,12.524,2412.1,2411.0,1.09020121]
[1750973982390,12.524,2412.1,2411.1,0.9139]
[1750973983300,12.524,2412.1,2411.1,9.76137637]
[1750973983301,3.333,2412.1,2411.1,9.76137637]
[1750973983503,12.506,2412.1,2411.1,5.6139]
[1750973985930,12.506,2412.1,2411.1,5.92874551]
[1750973986132,12.506,2412.1,2411.2,2.34519776]
[1750973986432,9.161,2412.3,2411.3,0.9036]
[1750973990205,4.14525492,2412.4,2411.3,0.9036]
[1750973990401,4.14544118,2412.3,2411.3,0.9036]
[1750973990596,13.29932195,2412.4,2411.3,0.9036]
[1750973990926,4.14603763,2412.0,2411.3,0.9036]
[1750973991225,4.14598547,2412.0,2411.3,0.9036]
[1750973991924,0.0176,2412.3,2411.3,0.9036]
[1750973992128,4.1456771,2412.2,2411.3,0.9036]
[1750973992619,4.14595578,2412.0,2411.3,0.9036]
[1750973992815,4.14585268,2412.1,2411.3,0.9036]
[1750973993036,4.14566315,2412.2,2411.3,2.49544455]
[1750973993232,4.14566315,2412.2,2411.3,0.9036]
[1750973993233,4.14584711,2412.1,2411.3,0.9036]
[1750973993626,9.139,2412.3,2411.3,0.9036]
[1750973994752,9.139,2412.3,2411.3,10.9036]
[1750973996552,4.14616725,2412.5,2411.3,10.9036]
[1750973996857,9.134,2412.4,2411.4,1.50508706]
[1750973997060,4.14581019,2412.1,2411.4,1.50508706]
[1750973997363,4.14602457,2412.0,2411.3,0.9036]
[1750973998153,4.1461203,2411.9,2411.3,0.9036]
[1750973998351,4.1463162,2411.8,2411.3,0.9036]
[1750973999357,4.14617194,2411.9,2411.3,0.9036]
[1750973999556,9.124,2411.8,2411.3,0.9036]
[1750974000132,9.124,2411.8,2410.8,0.8901]
[1750974000357,9.118,2412.2,2411.1,0.8901]
[1750974000561,9.118,2412.2,2411.2,2.31754852]
[1750974000759,9.118,2412.2,2411.1,0.8901]
[1750974001062,0.0207,2412.0,2411.1,0.8901]
[1750974001224,4.14696856,2411.4,2410.2,6.63706338]
[1750974001425,4.14794052,2410.9,2410.2,6.63706338]
[1750974001627,4.14794052,2410.9,2410.2,0.8901]
[1750974002036,4.69740202,2411.2,2410.2,0.8901]
[1750974002228,4.69740202,2411.2,2409.8,0.9125]
[1750974002229,4.14843349,2410.6,2409.8,0.9125]
[1750974002428,9.112,2410.6,2409.8,0.9125]
[1750974002629,13.26036519,2410.6,2409.8,0.9125]
[1750974002962,4.14860467,2410.5,2409.8,0.9125]
[1750974004467,4.14760363,2411.1,2409.8,0.9125]
[1750974004666,9.107,2410.8,2409.9,0.50622881]
[1750974008047,9.107,2410.8,2409.8,0.9125]
[1750974008048,4.14826325,2410.7,2409.8,0.9125]
[1750974008448,4.14834599,2410.6,2409.8,0.9125]
[1750974008649,4.14824555,2410.7,2409.8,0.9125]
[1750974009777,4.14804654,2410.8,2409.8,0.9125]
[1750974009981,13.24118199,2410.7,2409.8,0.9125]
[1750974011434,4.14834848,2410.6,2409.8,0.9125]
[1750974011766,13.24126069,2410.7,2409.8,0.9125]
[1750974012159,4.1485169,2410.5,2409.8,0.9125]
[1750974013739,4.14864979,2410.5,2409.8,0.9125]
[1750974013940,7.44211165,2410.6,2409.8,0.9125]
[1750974013941,3.2937,2410.6,2409.8,0.9125]
[1750974014371,3.273,2410.6,2409.8,0.9125]
[1750974015636,4.14862181,2410.5,2409.8,0.9125]
[1750974015845,4.14871671,2410.4,2409.8,0.9125]
[1750974016071,7.42137332,2410.6,2409.8,0.9125]
[1750974016365,4.14852203,2410.5,2409.8,0.9125]
[1750974016872,7.42143863,2410.6,2409.8,0.9125]
[1750974018966,3.273,2410.6,2409.8,0.9125]
[1750974019353,7.42136196,2410.6,2409.8,0.9125]
[1750974019758,4.14851875,2410.5,2409.8,0.9125]
[1750974020382,7.42142363,2410.6,2409.8,0.9125]
[1750974020682,4.14852636,2410.5,2409.8,0.9125]
[1750974020872,7.42142091,2410.6,2409.8,0.9125]
[1750974023181,4.1485408,2410.5,2409.8,0.9125]
[1750974023790,7.42143455,2410.6,2409.8,0.9125]
[1750974023965,4.14852151,2410.5,2409.8,0.9125]
[1750974024173,7.42141957,2410.6,2409.8,0.9125]
[1750974025581,3.273,2410.6,2409.8,0.9125]
[1750974026486,7.42137362,2410.6,2409.8,0.9125]
[1750974028255,7.42134942,2410.6,2409.8,0.9125]
[1750974030096,4.14853384,2410.5,2409.8,0.9125]
[1750974030907,0.55,2410.5,2409.4,0.8412]
[1750974031069,4.14982813,2409.8,2409.4,0.8412]
[1750974031274,9.016,2409.7,2409.4,0.8412]
[1750974032701,4.1495803,2409.9,2409.4,0.8412]
[1750974032702,9.011,2409.9,2409.4,0.8412]
[1750974034304,4.14980255,2409.8,2409.4,0.8412]
[1750974034477,9.011,2409.9,2409.4,0.8412]
[1750974036366,4.14977327,2409.8,2409.4,0.8412]
[1750974036727,4.14997672,2409.7,2409.3,0.002]
[1750974037809,4.15037804,2409.5,2409.3,0.002]
[1750974038031,13.14241089,2409.4,2409.3,0.002]
[1750974038746,13.14241089,2409.4,2408.7,0.8409]
[1750974038747,0.55,2409.1,2407.9,4.11117389]
[1750974039033,0.55,2409.1,2406.9,9.85813727]
[1750974039034,10.0,2407.6,2406.9,9.85813727]
[1750974039327,4.1550671,2406.7,2406.6,0.8929]
[1750974039528,4.1550671,2406.7,2406.3,5.74696338]
[1750974039529,4.15523975,2406.6,2406.3,5.74696338]
[1750974039731,4.15523975,2406.6,2406.2,0.8929]
[1750974039892,8.987,2406.7,2406.2,0.8929]
[1750974040702,3.198,2406.8,2406.2,0.8929]
[1750974041138,10.0,2407.2,2406.2,0.8929]
[1750974041304,8.981,2407.1,2406.2,0.8929]
[1750974041505,10.372,2407.7,2406.2,0.8929]
[1750974041752,8.979,2407.6,2406.9,0.8929]
[1750974042026,8.981,2407.5,2406.9,0.8929]
[1750974043295,8.981,2407.5,2405.7,0.30953496]
[1750974043296,0.55,2407.4,2406.5,0.8322]
[1750974043495,4.15471351,2407.0,2406.5,0.8322]
[1750974043692,8.975,2406.9,2406.5,0.002]
[1750974043924,4.15499875,2406.8,2406.5,0.002]
[1750974044124,4.15523975,2406.6,2406.5,0.002]
[1750974044505,7.35623975,2406.6,2406.5,0.002]
[1750974045563,7.35623975,2406.6,2404.8,17.77145433]
[1750974045564,10.55,2406.1,2404.2,8.93576207]
[1750974045718,4.15847651,2404.8,2404.2,0.8758]
[1750974045918,8.969,2404.8,2404.2,0.8758]
[1750974046119,8.969,2404.8,2403.9,0.30816589]
[1750974046120,8.968,2405.3,2404.5,6.53827]
[1750974046315,8.968,2405.7,2404.7,4.97581223]
[1750974046520,15.08428267,2406.6,2404.6,0.653827]
[1750974046521,10.379,2406.6,2405.0,0.8174]
[1750974046736,12.167,2406.5,2405.2,0.8174]
[1750974046949,4.1555851,2406.4,2405.2,0.8174]
[1750974047449,4.15610468,2406.1,2405.2,0.8174]
[1750974047651,8.963,2406.0,2405.2,0.8174]
[1750974048051,8.963,2406.0,2404.8,0.8174]
[1750974048256,4.15644873,2405.9,2404.8,0.8174]
[1750974048440,3.202,2405.8,2404.8,0.8174]
[1750974049359,8.96,2406.1,2404.9,10.8403]
[1750974049653,4.15371381,2407.5,2404.8,29.75055706]
[1750974049654,8.958,2406.9,2406.0,0.8403]
[1750974049820,3.202,2407.2,2406.0,0.8403]
[1750974050026,8.957,2407.1,2406.1,4.15601082]
[1750974050226,8.957,2407.1,2406.1,4.15610323]
[1750974050441,8.957,2407.1,2406.2,0.49964032]
[1750974050723,10.382,2407.6,2406.0,0.8403]
[1750974050925,8.956,2407.5,2406.5,4.15541242]
[1750974051228,10.382,2407.6,2406.6,0.8356]
[1750974051423,8.953,2407.5,2406.7,4.1550605]
[1750974051738,3.202,2407.8,2406.8,4.15480247]
[1750974051933,8.952,2407.7,2406.9,0.8356]
[1750974052244,10.384,2408.5,2406.9,0.8356]
[1750974052437,8.949,2408.4,2407.1,0.8356]
[1750974052755,8.949,2408.4,2407.1,4.98984416]
[1750974053327,13.101152,2408.4,2407.1,0.8356]
[1750974053529,13.101152,2408.4,2407.1,2.65480735]
[1750974053832,8.949,2408.4,2407.1,6.80918012]
[1750974054854,8.949,2408.4,2407.2,4.15420184]
[1750974055032,8.949,2408.4,2407.1,5.02120735]
[1750974055354,8.949,2408.4,2407.5,4.15366338]
[1750974055535,9.895432,2408.4,2407.5,4.98435641]
[1750974055736,8.949,2408.4,2407.5,4.98435641]
[1750974056150,8.949,2408.4,2407.6,4.99350693]
[1750974056751,8.949,2408.4,2407.6,0.8401]
[1750974056942,8.949,2408.4,2406.8,13.9278146]
[1750974056943,8.949,2408.4,2406.9,10.0]
[1750974057143,8.949,2408.4,2405.8,4.61900069]
[1750974057144,10.55,2408.3,2406.7,0.8755]
[1750974057343,4.15364521,2407.6,2406.7,0.8755]
[1750974057543,13.08264521,2407.6,2406.7,0.8755]
[1750974057862,13.08264521,2407.6,2406.7,10.8755]
[1750974058225,13.08264521,2407.6,2406.7,0.8755]
[1750974058960,4.15382469,2407.5,2406.7,0.8755]
[1750974059460,8.929,2407.6,2406.7,0.8755]
[1750974060161,4.15387367,2407.4,2406.7,0.8755]
[1750974060326,13.08252188,2407.6,2406.7,0.8755]
[1750974060327,4.15368639,2407.5,2406.7,0.8755]
[1750974060526,4.15464318,2407.0,2406.1,0.8589]
[1750974060759,4.15469559,2407.0,2406.1,0.8589]
[1750974060963,4.15469559,2407.0,2406.1,10.8589]
[1750974061844,4.15395491,2407.4,2406.1,10.8589]
[1750974062157,13.08254978,2407.6,2406.2,4.1559084]
[1750974062331,13.08254978,2407.6,2406.3,1.9170904]
[1750974062531,8.929,2407.6,2406.4,5.01446871]
[1750974062760,13.08251467,2407.6,2406.4,0.8589]
[1750974063363,8.929,2407.6,2406.4,5.01448224]
[1750974063864,8.929,2407.6,2406.7,10.812]
[1750974064061,8.929,2407.6,2406.7,0.812]
[1750974064562,4.15446818,2407.1,2406.1,0.812]
[1750974064896,4.15412946,2407.3,2406.1,10.812]
[1750974065048,4.15438132,2407.1,2406.1,10.812]
[1750974065238,4.15428931,2407.2,2406.1,10.812]
[1750974065459,0.41542893,2407.2,2406.1,13.2439]
[1750974065962,13.08258263,2407.6,2406.1,17.39992169]
[1750974066353,8.929,2407.6,2406.2,4.1558149]
[1750974066553,13.08259681,2407.6,2406.3,5.02863998]
[1750974067238,13.08259681,2407.6,2406.3,0.8729]
[1750974067644,13.08260174,2407.6,2406.3,0.8729]
[1750974067855,13.08260174,2407.6,2406.3,6.77473235]
[1750974068163,13.08252731,2407.6,2406.3,6.77467363]
[1750974068367,8.929,2407.6,2406.3,2.61899008]
[1750974068539,8.929,2407.6,2406.6,0.8388]
[1750974069350,8.929,2407.6,2406.6,4.99403853]
[1750974069671,8.929,2407.6,2406.6,1.75376136]
[1750974070045,8.929,2407.6,2406.6,0.8388]
[1750974071152,8.929,2407.6,2406.6,4.99403663]
[1750974071394,8.929,2407.6,2406.6,0.8388]
[1750974071672,4.15092386,2409.2,2407.2,5.05233421]
[1750974071673,12.0,2408.4,2407.2,5.05233421]
[1750974071868,0.95856815,2408.3,2407.2,5.05236007]
[1750974072064,0.95856815,2408.2,2407.2,1.81897119]
[1750974072268,16.15216428,2408.4,2407.2,1.81897119]
[1750974072269,4.15306994,2407.9,2407.2,0.8983]
[1750974072466,4.15306994,2407.9,2406.3,1.74609008]
[1750974072467,4.15417567,2407.3,2406.8,0.8368]
[1750974072669,4.15498123,2406.8,2406.1,0.8368]
[1750974072889,4.15504388,2406.8,2406.1,0.8368]
[1750974073092,4.15489446,2406.8,2406.1,0.8368]
[1750974073384,4.15507348,2406.7,2406.1,0.8368]
[1750974073539,4.15473994,2406.9,2406.1,0.8368]
[1750974073540,4.15495893,2406.8,2406.1,0.8368]
[1750974073744,4.98592094,2406.8,2406.1,0.8368]
[1750974074863,4.1551011,2406.7,2406.1,0.8368]
[1750974075064,4.15514922,2406.7,2406.1,0.8368]
[1750974075264,4.98595308,2406.8,2406.1,0.8368]
[1750974076187,0.83096989,2406.8,2406.1,0.8368]
[1750974076381,3.123,2407.7,2406.1,0.8368]
[1750974076548,0.95992668,2407.6,2406.6,0.8645]
[1750974076744,0.95992668,2408.2,2407.0,0.8457]
[1750974077060,3.123,2408.9,2407.0,8.12316578]
[1750974077061,0.9601546,2408.1,2407.0,8.12316578]
[1750974077262,0.9601546,2408.3,2407.0,8.12316578]
[1750974077465,0.9601546,2408.2,2407.1,0.81231658]
[1750974077651,0.9601546,2408.5,2407.3,0.8457]
[1750974077866,0.9601546,2408.4,2407.3,0.8457]
[1750974078069,0.9601546,2408.3,2407.3,0.8457]
[1750974078379,0.9601546,2408.2,2407.3,0.8457]
[1750974078574,5.11213936,2408.5,2407.3,0.8457]
[1750974078779,1.47146854,2408.4,2407.3,0.8457]
[1750974078947,4.66355047,2408.4,2407.3,0.8457]
[1750974079147,5.62413434,2408.4,2407.3,0.8457]
[1750974079479,4.66355047,2408.4,2407.3,0.8457]
[1750974079778,0.001,2407.8,2407.3,0.8457]
[1750974081579,0.55,2406.9,2405.6,0.8659]
[1750974081878,4.15581828,2406.3,2405.6,0.8659]
[1750974082288,4.15565348,2406.4,2405.6,0.8659]
[1750974082582,3.123,2407.4,2406.3,0.8686]
[1750974082785,10.0,2407.7,2406.3,0.8686]
[1750974082985,8.838,2407.8,2406.6,4.15523809]
[1750974083513,8.838,2407.8,2406.6,4.15515579]
[1750974083514,0.96060656,2407.7,2406.6,4.15515579]
[1750974083795,0.96060656,2407.6,2406.7,0.8881]
[1750974084095,4.1534487,2407.7,2406.7,0.8881]
[1750974084096,0.96060656,2407.5,2406.7,0.8881]
[1750974084306,5.11398023,2407.7,2406.7,0.8881]
[1750974084594,4.15337367,2407.7,2406.7,0.8881]
[1750974086059,4.15337367,2407.7,2406.4,0.39916]
[1750974086265,10.55,2407.7,2406.4,0.846]
[1750974086504,4.15491789,2406.8,2406.0,0.846]
[1750974086862,4.15481065,2406.9,2406.0,0.846]
[1750974088100,4.15449304,2407.1,2406.0,0.846]
[1750974088480,3.123,2407.3,2406.0,0.846]
[1750974088680,3.4353,2407.3,2406.0,10.846]
[1750974088984,0.55,2407.2,2405.6,0.8489]
[1750974089380,4.15481899,2406.9,2405.6,0.8489]
[1750974089698,4.15456273,2407.0,2405.6,0.8489]
[1750974089898,4.15483465,2406.9,2405.6,0.8489]
[1750974090099,4.98577439,2406.9,2405.7,1.08489]
[1750974091171,4.98573083,2406.9,2405.7,1.08489]
[1750974091372,0.001,2407.8,2406.5,4.15529574]
[1750974091591,0.001,2407.8,2406.7,0.8249]
[1750974091865,10.001,2407.8,2406.7,0.8249]
[1750974092101,0.001,2407.8,2406.7,0.8249]
[1750974092314,0.001,2407.8,2406.7,4.97987747]
[1750974092510,0.001,2407.8,2406.7,7.08628785]
[1750974092801,0.001,2407.8,2406.7,2.93131038]
[1750974093971,4.15337061,2407.7,2406.7,2.93131038]
[1750974094698,0.001,2407.8,2406.7,2.93131038]
[1750974094699,4.15425591,2407.8,2406.7,2.93131038]
[1750974095094,0.001,2407.8,2406.7,2.93131038]
[1750974095413,0.001,2407.8,2406.7,7.08636423]
[1750974095609,0.001,2407.8,2406.7,2.93131038]
[1750974095815,0.001,2407.8,2406.8,1.02094767]
[1750974097390,4.15426832,2407.8,2406.8,1.02094767]
[1750974097698,0.001,2407.8,2406.8,1.02094767]
[1750974097901,4.15417914,2407.8,2406.8,1.02094767]
[1750974098109,4.15338434,2407.7,2406.8,1.02094767]
[1750974098521,4.15424733,2407.8,2406.7,0.8249]
[1750974099728,0.001,2407.8,2406.7,0.8249]
[1750974100024,0.001,2407.8,2406.8,0.8722]
[1750974100197,0.001,2407.8,2407.1,0.8722]
[1750974101185,0.001,2407.8,2407.1,5.02644839]
[1750974101406,0.001,2407.8,2407.2,0.91809728]
[1750974101608,0.001,2407.8,2407.3,0.8913]
[1750974101918,0.001,2407.8,2407.3,3.9303]
[1750974104438,0.001,2407.8,2407.4,0.8833]
[1750974105135,0.001,2407.8,2407.4,5.03703099]
[1750974105422,0.001,2407.8,2407.5,1.22300017]
[1750974105728,0.001,2407.8,2407.5,5.37665837]
[1750974106029,0.001,2407.8,2407.6,10.8833]
[1750974106704,0.001,2407.8,2407.6,0.8833]
[1750974106905,0.001,2407.8,2407.6,9.6233]
[1750974108418,0.001,2407.8,2407.6,9.6223]
[1750974110811,0.001,2407.8,2407.6,9.6073]
[1750974112121,0.001,2407.8,2407.6,0.8833]
[1750974112315,0.001,2407.8,2407.6,9.6073]
[1750974114397,0.001,2407.8,2407.6,9.5923]
[1750974114593,0.001,2407.8,2407.3,3.039]
[1750974114594,0.001,2407.8,2407.3,0.7916]
[1750974114922,0.001,2407.8,2405.7,5.24155127]
[1750974114923,4.15334972,2407.7,2406.6,3.8306]
[1750974115129,4.98418519,2407.7,2406.7,8.707]
[1750974115323,4.98418519,2407.7,2406.8,10.0]
[1750974116103,4.98418519,2407.7,2406.6,4.629211]
[1750974116316,4.98418519,2407.7,2406.8,8.705]
[1750974118129,4.9842708,2407.7,2406.8,8.705]
[1750974118502,4.9842708,2407.7,2406.8,8.7]
[1750974118503,4.98424291,2407.7,2406.8,8.7]
[1750974118703,4.15373939,2407.5,2406.6,0.7916]
[1750974118903,2.5,2407.5,2406.6,0.7916]
[1750974119106,3.24843774,2407.5,2406.6,0.7916]
[1750974119729,3.24843774,2407.5,2406.7,8.69]
[1750974120515,2.5,2407.5,2406.7,8.69]
[1750974121238,2.5,2407.5,2406.7,12.84506449]
[1750974121745,2.5,2407.5,2406.7,8.69]
[1750974122057,0.001,2407.8,2407.2,4.1540877]
[1750974122210,0.001,2407.8,2407.3,8.68]
[1750974122414,0.001,2407.8,2407.5,0.7873]
[1750974124436,0.001,2407.8,2407.5,4.94094316]
[1750974124607,0.001,2407.8,2407.5,0.7873]
[1750974125820,0.001,2407.8,2407.6,8.667]
[1750974127328,0.001,2407.8,2407.7,8.664]
[1750974127726,0.001,2407.8,2407.7,10.37463]
[1750974128045,0.001,2407.8,2407.7,1.71063]
[1750974128246,0.001,2407.8,2407.5,5.4873]
[1750974128454,0.001,2407.8,2407.5,4.7]
[1750974130318,0.001,2407.8,2407.4,12.476]
[1750974130515,0.001,2407.8,2407.4,0.868]
[1750974130814,0.001,2407.8,2406.9,0.8495]
[1750974130815,0.001,2407.8,2406.9,10.8495]
[1750974131037,0.001,2407.8,2407.1,10.0]
[1750974131723,0.001,2407.8,2407.1,18.643]
[1750974135045,0.001,2407.8,2407.1,10.0]
[1750974135242,0.001,2407.8,2407.2,8.632]
[1750974135550,0.001,2407.8,2407.2,10.4952]
[1750974136979,0.001,2407.8,2407.3,4.15391157]
[1750974137139,0.001,2407.8,2407.2,10.4952]
[1750974137472,0.001,2407.8,2407.5,0.801]
[1750974137666,0.001,2407.8,2407.6,8.618]
[1750974138371,0.001,2407.8,2407.6,9.97528303]
[1750974139548,0.001,2407.8,2407.7,8.612]
[1750974139751,0.001,2407.8,2407.5,0.801]
[1750974140041,0.001,2407.8,2407.6,8.608]
[1750974145073,0.001,2407.8,2407.6,12.76150117]
[1750974145385,0.001,2407.8,2407.7,1.85733226]
[1750974147796,0.001,2407.8,2407.7,6.55733226]
[1750974149194,0.001,2407.8,2407.7,15.13133226]
[1750974149371,0.001,2407.8,2407.7,15.12533226]
[1750974150391,0.001,2407.8,2407.7,15.12133226]
[1750974152993,0.001,2407.9,2407.7,15.12133226]
[1750974153193,0.001,2407.9,2407.8,10.77498378]
[1750974157902,0.001,2407.9,2407.8,15.47498378]
[1750974158481,0.001,2408.6,2407.8,27.79271961]
[1750974158680,0.001,2408.6,2407.9,8.85298793]
[1750974158886,0.001,2408.6,2408.0,8.53]
[1750974159086,0.001,2408.6,2408.1,1.73829879]
[1750974159283,0.001,2408.6,2408.2,8.528]
[1750974159778,0.001,2408.6,2408.2,24.99812881]
[1750974159971,0.001,2408.6,2408.3,4.15229387]
[1750974160170,0.001,2408.6,2408.4,8.525]
[1750974160379,0.001,2408.6,2408.5,6.17679119]
[1750974160806,0.001,2408.6,2408.5,11.65389119]
[1750974161519,0.001,2408.8,2408.6,4.15175241]
[1750974161719,0.001,2408.8,2408.7,8.52]
[1750974164006,0.001,2408.8,2408.7,13.22]
[1750974164205,0.001,2408.8,2408.7,16.46914409]
[1750974165607,0.001,2408.8,2408.7,13.22]
[1750974165781,0.001,2408.8,2408.7,8.499]
[1750974166107,0.001,2408.8,2408.4,8.498]
[1750974166306,0.001,2408.8,2408.5,8.497]
[1750974166505,0.001,2408.8,2408.1,4.7]
[1750974166705,0.001,2408.8,2408.3,10.0]
[1750974167005,0.001,2408.8,2408.4,8.495]
[1750974167719,0.001,2408.8,2408.5,8.491]
[1750974168804,0.001,2408.8,2408.2,11.47]
[1750974168995,0.001,2408.8,2408.3,8.486]
[1750974169211,0.001,2408.8,2408.3,11.2386]
[1750974169713,0.001,2408.8,2408.4,8.483]
[1750974172521,0.001,2408.8,2408.3,7.4526]
[1750974172882,0.001,2408.8,2408.4,8.47]
[1750974173712,0.001,2408.8,2408.3,4.7]
[1750974173896,0.001,2408.8,2408.5,8.47]
[1750974174294,0.001,2408.8,2408.6,8.466]
[1750974175885,0.001,2409.4,2408.6,8.466]
[1750974176222,0.001,2409.4,2408.7,4.15148051]
[1750974176420,0.001,2409.4,2409.0,8.67662019]
[1750974176597,0.001,2409.4,2409.1,9.32366202]
[1750974179718,0.001,2409.4,2409.1,9.50686679]
[1750974185242,0.001,2409.4,2409.2,5.5264]
[1750974188238,0.001,2409.4,2409.2,0.8264]
[1750974190857,0.001,2409.4,2409.2,4.97715294]
[1750974191049,0.001,2409.4,2409.3,1.44840197]
[1750974192031,0.001,2409.8,2409.3,1.44840197]
[1750974192032,0.001,2409.8,2409.5,10.0]
[1750974192225,0.001,2409.8,2409.6,8.39]
[1750974194142,0.001,2409.8,2409.7,14.14989417]
[1750974195169,0.001,2410.4,2409.8,0.8111]
[1750974195377,0.001,2410.4,2409.9,9.87309942]
[1750974197271,0.001,2410.4,2410.0,10.0]
[1750974198139,0.001,2410.4,2410.1,4.7]
[1750974198372,0.001,2410.4,2410.3,8.66729131]
[1750974199353,0.001,2410.4,2410.3,21.45329131]
[1750974199672,0.001,2410.4,2410.3,24.84993204]
[1750974202749,4.14786549,2411.5,2410.4,10.0]
[1750974203071,4.14786549,2411.5,2410.5,8.349]
[1750974203287,0.001,2411.5,2410.5,8.349]
[1750974203442,0.001,2411.5,2410.6,0.8349]
[1750974203645,0.001,2411.5,2410.7,8.342]
[1750974204086,0.001,2411.5,2410.7,13.042]
[1750974208866,0.001,2411.5,2410.7,4.7]
[1750974209185,0.001,2411.5,2410.8,8.317]
[1750974209362,0.001,2411.5,2410.7,4.7]
[1750974209567,4.14757469,2411.1,2410.4,10.0]
[1750974209778,4.1475095,2411.1,2410.4,10.0]
[1750974210152,4.14779202,2411.0,2409.9,8.312]
[1750974210357,4.14784739,2410.9,2410.0,10.0]
[1750974212049,4.14784739,2410.9,2409.9,1.69782913]
[1750974212255,4.14784739,2410.9,2410.0,8.304]
[1750974213692,4.14766093,2411.0,2410.0,8.304]
[1750974213693,4.14800179,2410.8,2410.0,8.304]
[1750974213892,4.14800179,2410.8,2410.0,11.17091204]
[1750974214093,0.46971905,2411.2,2409.9,11.38324058]
[1750974214094,4.14818168,2410.7,2409.9,11.38324058]
[1750974214275,4.14818168,2410.7,2410.0,8.299]
[1750974215499,4.14818168,2410.7,2409.8,8.296]
[1750974215683,4.14818168,2410.7,2409.9,10.0]
[1750974216498,4.14842748,2410.6,2409.9,8.288]
[1750974216898,4.14842748,2410.6,2409.8,10.0]
[1750974217103,4.97807251,2410.6,2409.8,18.287]
[1750974217422,4.97807251,2410.6,2409.8,18.284]
[1750974217583,4.14852068,2410.5,2409.8,10.0]
[1750974217776,4.97806692,2410.6,2409.8,18.283]
[1750974217977,0.82964503,2410.6,2409.8,18.283]
[1750974218270,4.97802909,2410.6,2409.8,22.04542617]
[1750974218676,4.14838406,2410.6,2409.8,22.04542617]
[1750974219506,4.14838406,2410.6,2409.8,13.76342617]
[1750974219694,4.14838406,2410.6,2409.9,8.276]
[1750974220288,4.14826865,2410.7,2409.9,8.276]
[1750974220484,4.14835065,2410.6,2409.8,13.76342617]
[1750974220673,4.14825956,2410.7,2409.8,22.03842617]
[1750974221200,4.14825956,2410.7,2409.8,13.76342617]
[1750974221400,4.14834896,2410.6,2409.8,12.03442617]
[1750974221603,14.97788073,2410.7,2409.8,12.03442617]
[1750974222192,14.97788073,2410.7,2409.8,3.76342617]
[1750974222401,14.97788073,2410.7,2409.8,12.02942617]
[1750974222905,14.97788073,2410.7,2409.9,8.265]
[1750974223108,0.75555483,2410.6,2409.9,8.265]
[1750974225200,14.14824745,2410.7,2409.9,8.265]
[1750974226713,4.14824745,2410.7,2409.9,8.265]
[1750974226897,14.14811117,2410.8,2409.9,8.265]
[1750974227097,14.14811117,2410.8,2410.0,8.66729131]
[1750974227702,2.785,2411.3,2410.3,8.66729131]
[1750974227903,0.001,2411.5,2410.6,8.66729131]
[1750974228103,0.001,2411.5,2410.6,16.91029131]
[1750974229185,0.00344339,2411.3,2410.7,8.238]
[1750974230187,0.00344339,2411.3,2410.8,0.8392]
[1750974233352,0.00344339,2411.3,2410.6,4.7]